fUST/lending_fUST_20250111
["ID","MTS","AMOUNT","RATE_DAILY","PERIOD"]
[348493629,1736579445322,-151.0,0.00022191,7]
[348493630,1736579445331,-151.0,0.00022191,7]
[348493631,1736579445341,-151.0,0.00022191,7]
[348493632,1736579445350,-151.0,0.00022191,7]
[348493633,1736579445359,-151.0,0.00022191,7]
[348493634,1736579445369,-151.0,0.00022191,7]
[348493635,1736579445378,-151.0,0.00022191,7]
[348493636,1736579445387,-194.566518,0.00022191,7]
[348493637,1736579445396,-488.07842804,0.00022191,3]
[348493648,1736579446095,-296.29743569,0.00021698,2]
[348493649,1736579446105,-504.53448255,0.00021917,3]
[348493650,1736579446114,-500.0,0.00021917,3]
[348493651,1736579446123,-152.0,0.00022068,2]
[348493652,1736579446133,-11.92157196,0.00022191,3]
[348493653,1736579446142,-500.0,0.00022191,3]
[348493654,1736579446151,-226.409074,0.00022191,7]
[348493655,1736579446160,-500.0,0.00022191,3]
[348493656,1736579446169,-500.0,0.00022191,3]
[348493657,1736579446178,-500.0,0.00022191,3]
[348493658,1736579446187,-500.0,0.00022191,3]
[348493659,1736579446196,-538.87,0.00022191,3]
[348493660,1736579446206,-500.0,0.00022191,3]
[348493661,1736579446215,-500.0,0.00022191,3]
[348493662,1736579446224,-500.0,0.00022191,3]
[348493663,1736579446234,-500.0,0.00022191,3]
[348493664,1736579446243,-500.0,0.00022191,3]
[348493665,1736579446252,-500.0,0.00022191,3]
[348493666,1736579446261,-500.0,0.00022191,3]
[348493667,1736579446270,-500.0,0.00022191,3]
[348493668,1736579446279,-151.0,0.00022191,7]
[348493669,1736579446288,-151.0,0.00022191,7]
[348493670,1736579446298,-151.0,0.00022191,7]
[348493671,1736579446307,-151.0,0.00022191,7]
[348493672,1736579446316,-151.0,0.00022191,7]
[348493673,1736579446325,-151.0,0.00022191,7]
[348493674,1736579446334,-151.0,0.00022191,7]
[348493675,1736579446343,-165.291176,0.00022191,7]
[348493676,1736579446354,-1054.33,0.00022191,3]
[348493677,1736579446363,-500.0,0.00022191,3]
[348493678,1736579446372,-151.0,0.00022191,7]
[348493679,1736579446381,-151.0,0.00022191,7]
[348493680,1736579446390,-151.0,0.00022191,7]
[348493681,1736579446399,-153.678091,0.00022191,7]
[348493682,1736579446408,-500.0,0.00022191,3]
[348493683,1736579446417,-500.0,0.00022191,3]
[348493684,1736579446427,-500.0,0.00022191,3]
[348493685,1736579446436,-500.0,0.00022191,3]
[348493686,1736579446446,-228.85583281,0.00022191,3]
[348493687,1736579446460,-500.0,0.00022191,3]
[348493688,1736579446473,-500.0,0.00022191,3]
[348493689,1736579446486,-183.372696,0.00022191,7]
[348493690,1736579446499,-151.0,0.00022191,7]
[348493691,1736579446511,-152.877224,0.00022191,7]
[348493692,1736579446521,-500.0,0.00022191,3]
[348493693,1736579446535,-500.0,0.00022191,3]
[348493694,1736579446547,-500.0,0.00022191,3]
[348493695,1736579446562,-505.99462717,0.00022191,3]
[348493696,1736579446575,-500.0,0.00022191,3]
[348493697,1736579446587,-500.0,0.00022191,3]
[348493698,1736579446599,-500.0,0.00022191,3]
[348493699,1736579446612,-500.0,0.00022191,3]
[348493700,1736579446625,-500.0,0.00022191,3]
[348493701,1736579446639,-500.0,0.00022191,3]
[348493702,1736579446652,-150.83733543,0.00022191,7]
[348493703,1736579446663,-198.238462,0.00022191,7]
[348493704,1736579446675,-198.238462,0.00022191,7]
[348493705,1736579446687,-500.0,0.00022191,3]
[348493706,1736579446699,-500.0,0.00022191,3]
[348493707,1736579446712,-198.238462,0.00022191,7]
[348493708,1736579446725,-198.238464,0.00022191,7]
[348493709,1736579446739,-500.0,0.00022191,3]
[348493710,1736579446751,-369.99024874,0.00022191,3]
[348493711,1736579446761,-238.08,0.00022191,3]
[348493712,1736579446772,-500.0,0.00022191,3]
[348493713,1736579446785,-151.0,0.00022191,7]
[348493714,1736579446795,-151.0,0.00022191,7]
[348493715,1736579446808,-151.0,0.00022191,7]
[348493716,1736579446820,-151.0,0.00022191,7]
[348493717,1736579446833,-151.0,0.00022191,7]
[348493718,1736579446844,-151.0,0.00022191,7]
[348493719,1736579446857,-181.805416,0.00022191,7]
[348493720,1736579446869,-2877.87,0.00022191,3]
[348493721,1736579446881,-500.0,0.00022191,3]
[348493722,1736579446892,-622.67,0.00022191,3]
[348493723,1736579446905,-626.76,0.00022191,3]
[348493724,1736579446917,-40784.3,0.00022191,2]
[348493725,1736579446929,-565.37,0.00022191,3]
[348493726,1736579446939,-500.0,0.00022191,3]
[348493727,1736579446949,-500.0,0.00022191,3]
[348493728,1736579446959,-500.0,0.00022191,3]
[348493729,1736579446969,-1875.72,0.00022191,3]
[348493730,1736579446981,-642.42,0.00022191,3]
[348493731,1736579446994,-500.0,0.00022191,3]
[348493732,1736579447006,-605.28,0.00022191,3]
[348493733,1736579447016,-500.0,0.00022191,3]
[348493734,1736579447026,-500.0,0.00022191,3]
[348493735,1736579447037,-500.0,0.00022191,2]
[348493736,1736579447048,-500.0,0.00022191,3]
[348493737,1736579447058,-500.0,0.00022191,3]
[348493738,1736579447071,-500.0,0.00022191,3]
[348493739,1736579447082,-500.0,0.00022191,3]
[348493740,1736579447092,-500.0,0.00022191,3]
[348493741,1736579447104,-3191.83,0.00022191,3]
[348493742,1736579447115,-150.17,0.00022191,7]
[348493743,1736579447126,-150.17,0.00022191,2]
[348493744,1736579447137,-150.17,0.00022191,7]
[348493745,1736579447148,-951.21599978,0.00022191,7]
[348493746,1736579447159,-150.17,0.00022191,2]
[348493747,1736579447170,-500.0,0.00022191,7]
[348493748,1736579447180,-150.17,0.00022191,2]
[348493749,1736579447191,-150.22787631,0.00022191,7]
[348493750,1736579447202,-500.0,0.00022191,3]
[348493751,1736579447213,-406.493812,0.00022191,7]
[348493752,1736579447224,-1269.1,0.00022191,3]
[348493753,1736579447234,-406.493812,0.00022191,7]
[348493754,1736579447245,-406.493812,0.00022191,7]
[348493755,1736579447256,-406.493812,0.00022191,7]
[348493756,1736579447267,-500.0,0.00022191,3]
[348493757,1736579447277,-406.493812,0.00022191,7]
[348493758,1736579447287,-500.0,0.00022191,7]
[348493759,1736579447298,-500.0,0.00022191,3]
[348493760,1736579447308,-406.493812,0.00022191,7]
[348493761,1736579447319,-406.493812,0.00022191,7]
[348493762,1736579447329,-406.493812,0.00022191,7]
[348493763,1736579447340,-406.493812,0.00022191,7]
[348493764,1736579447351,-406.493818,0.00022191,7]
[348493765,1736579447362,-500.0,0.00022191,7]
[348493766,1736579447372,-500.0,0.00022191,3]
[348493767,1736579447382,-150.17,0.00022191,2]
[348493768,1736579447393,-500.0,0.00022191,3]
[348493769,1736579447403,-150.17,0.00022191,7]
[348493770,1736579447415,-919.55,0.00022191,3]
[348493771,1736579447426,-150.17,0.00022191,7]
[348493772,1736579447437,-500.0,0.00022191,3]
[348493773,1736579447448,-500.0,0.00022191,3]
[348493774,1736579447459,-431.57,0.00022191,3]
[348493775,1736579447469,-500.0,0.00022191,3]
[348493776,1736579447479,-549.45754678,0.00022191,3]
[348493777,1736579447488,-500.0,0.00022191,3]
[348493778,1736579447498,-671.21,0.00022191,3]
[348493779,1736579447507,-500.0,0.00022191,3]
[348493780,1736579447517,-500.0,0.00022191,3]
[348493781,1736579447527,-413.07192016,0.00022191,3]
[348493782,1736579447536,-214.701466,0.00022191,7]
[348493783,1736579447545,-523.89,0.00022191,3]
[348493784,1736579447554,-214.701466,0.00022191,7]
[348493785,1736579447563,-151.0,0.00022191,7]
[348493786,1736579447573,-151.0,0.00022191,7]
[348493787,1736579447582,-500.0,0.00022191,3]
[348493788,1736579447591,-500.0,0.00022191,3]
[348493789,1736579447601,-500.0,0.00022191,3]
[348493790,1736579447611,-475.46005136,0.00022191,3]
[348493791,1736579447620,-533.12,0.00022191,3]
[348493792,1736579447629,-500.0,0.00022191,3]
[348493793,1736579447638,-500.0,0.00022191,3]
[348493794,1736579447777,-1162.8,0.00022191,3]
[348493795,1736579447790,-500.0,0.00022191,3]
[348493796,1736579447799,-737.06,0.00022191,3]
[348493797,1736579447808,-718.73,0.00022191,3]
[348493798,1736579447818,-500.0,0.00022191,3]
[348493799,1736579447827,-1165.29,0.00022191,3]
[348493800,1736579447836,-180.07994263,0.00022191,3]
[348493801,1736579447846,-527.85139141,0.00022191,3]
[348493802,1736579447855,-14264.09,0.00022191,3]
[348493803,1736579447864,-500.0,0.00022191,3]
[348493804,1736579447874,-606.01,0.00022191,3]
[348493805,1736579447883,-500.0,0.00022191,3]
[348493806,1736579447893,-150.17,0.00022191,7]
[348493807,1736579447902,-590.84,0.00022191,3]
[348493808,1736579447911,-564.88,0.00022191,3]
[348493809,1736579447920,-153.7772247,0.00022192,2]
[348493810,1736579447929,-214.7048389,0.00022192,2]
[348493811,1736579447938,-771.93,0.000222,2]
[348493812,1736579447948,-13735.51,0.000222,2]
[348493813,1736579447959,-157.3608041,0.000222,2]
[348493814,1736579447968,-151.0,0.000222,7]
[348493815,1736579447977,-151.0,0.000222,7]
[348493816,1736579447987,-151.0,0.000222,7]
[348493817,1736579447996,-515.05419269,0.00022245,2]
[348493818,1736579448005,-151.0,0.000223,7]
[348493819,1736579448014,-515.05419269,0.00022314,2]
[348493820,1736579448023,-515.05419269,0.00022383,2]
[348493821,1736579448033,-151.0,0.000224,5]
[348493822,1736579448043,-151.0,0.000224,6]
[348493823,1736579448052,-3066.20224848,0.000224,2]
[348493824,1736579448062,-155.0,0.00022447,2]
[348493825,1736579448070,-155.0,0.00022447,2]
[348493826,1736579448079,-155.0,0.00022447,2]
[348493827,1736579448088,-155.0,0.00022447,2]
[348493828,1736579448098,-155.0,0.00022447,2]
[348493829,1736579448107,-155.0,0.00022447,2]
[348493830,1736579448117,-155.0,0.00022447,2]
[348493831,1736579448126,-155.0,0.00022447,2]
[348493832,1736579448135,-155.0,0.00022447,2]
[348493833,1736579448144,-155.0,0.00022447,2]
[348493834,1736579448153,-155.0,0.00022447,2]
[348493835,1736579448162,-155.0,0.00022447,2]
[348493836,1736579448172,-155.0,0.00022447,2]
[348493837,1736579448180,-155.0,0.00022447,2]
[348493838,1736579448190,-155.0,0.00022447,2]
[348493839,1736579448199,-155.0,0.00022447,2]
[348493840,1736579448207,-161.07,0.00022447,2]
[348493841,1736579448217,-57976.81630537,0.0002245,15]
[348493842,1736579448231,-631.56,0.0002245,15]
[348493843,1736579448242,-3229.61858,0.0002245,15]
[348493844,1736579448253,-103140.63483123,0.0002245,15]
[348493845,1736579448267,-1247.4097281,0.0002245,15]
[348493857,1736580632535,-171.70699105,0.0001881,2]
[348493858,1736580632545,-550.89237895,0.00019507,2]
[348493859,1736580632557,-1364.49891702,0.00019507,2]
[348493860,1736580632566,-644.06143211,0.00019507,2]
[348493861,1736580632576,-196.57152431,0.00019607,2]
[348493862,1736580632585,-300.0,0.00019999,2]
[348493863,1736580632594,-8714.20311584,0.0002,2]
[348493864,1736580632603,-164.084626,0.00020049,2]
[348493865,1736580632612,-222.25657227,0.00020243,2]
[348493866,1736580632621,-3789.7347274,0.00020297,2]
[348493867,1736580632630,-11681.80869503,0.0002033,2]
[348493868,1736580632646,-3570.85671147,0.0002033,2]
[348493869,1736580632656,-1373.9762351,0.00020343,2]
[348493870,1736580632665,-373.01562857,0.0002035,2]
[348493871,1736580632675,-827.12684543,0.00020561,2]
[348493872,1736580632704,-8048.73643257,0.00020561,2]
[348493873,1736580632714,-522.9791783,0.00020609,2]
[348493874,1736580632723,-386.454,0.0002133,2]
[348493875,1736580632735,-420.0,0.00021777,2]
[348493876,1736580632744,-377.70640805,0.000219,2]
[348493877,1736580632754,-151.0,0.00021904,2]
[348493878,1736580632763,-552.57800335,0.00021915,2]
[348493879,1736580632773,-500.0,0.00021915,2]
[348493880,1736580632782,-500.0,0.00021915,2]
[348493881,1736580632792,-500.0,0.00021915,2]
[348493882,1736580632801,-500.0,0.00021915,2]
[348493883,1736580632811,-500.0,0.00021915,2]
[348493884,1736580632820,-295.26447756,0.00021915,2]
[348493891,1736580638515,-184.06980475,0.00021817,2]
[348493892,1736580638525,-184.06980475,0.00021908,2]
[348493893,1736580638535,-204.73552244,0.00021915,2]
[348493894,1736580638544,-443.76982934,0.00021915,2]
[348493895,1736580638554,-500.0,0.00021915,2]
[348493896,1736580638564,-233.71868433,0.00021915,2]
[348493897,1736580638575,-500.0,0.00021915,2]
[348493898,1736580638585,-500.0,0.00021915,2]
[348493899,1736580638595,-240.07025044,0.00021915,2]
[348493900,1736580638604,-150.637,0.00021916,2]
[348493901,1736580638614,-202.86886012,0.00021916,2]
[348493902,1736580638623,-482.12306244,0.00021916,2]
[348493903,1736580638633,-246.60201173,0.00021916,2]
[348493904,1736580638642,-499.0,0.00021916,2]
[348493905,1736580638652,-294.93015175,0.00021917,3]
[348493915,1736580640365,-209.55145284,0.00021917,3]
[348493916,1736580640375,-110.40454652,0.00021917,3]
[348493917,1736580640394,-390.99987061,0.00021917,3]
[348493918,1736580640403,-500.0,0.00021917,3]
[348493919,1736580640413,-500.0,0.00021917,3]
[348493920,1736580640422,-577.29,0.00021917,3]
[348493921,1736580640431,-156.73140957,0.00021917,3]
[348493922,1736580640441,-513.28845624,0.00021917,3]
[348493923,1736580640450,-500.0,0.00021917,3]
[348493924,1736580640579,-500.0,0.00021917,3]
[348493925,1736580640591,-500.0,0.00021917,3]
[348493926,1736580640600,-500.0,0.00021917,3]
[348493927,1736580640610,-500.0,0.00021917,3]
[348493928,1736580640619,-500.0,0.00021917,3]
[348493929,1736580640628,-500.0,0.00021917,3]
[348493930,1736580640637,-500.0,0.00021917,3]
[348493931,1736580640646,-500.0,0.00021917,3]
[348493932,1736580640656,-269.89979228,0.00021917,3]
[348493933,1736580640665,-500.0,0.00021917,3]
[348493934,1736580640674,-500.0,0.00021917,3]
[348493935,1736580640684,-500.0,0.00021917,3]
[348493936,1736580640692,-500.0,0.00021917,3]
[348493937,1736580640702,-500.0,0.00021917,3]
[348493938,1736580640711,-966.46,0.00021917,3]
[348493939,1736580640720,-500.0,0.00021917,3]
[348493940,1736580640729,-500.0,0.00021917,3]
[348493941,1736580640738,-500.0,0.00021917,3]
[348493942,1736580640747,-500.0,0.00021917,3]
[348493943,1736580640756,-500.0,0.00021917,3]
[348493944,1736580640765,-500.0,0.00021917,3]
[348493945,1736580640774,-508.27128092,0.00021917,3]
[348493946,1736580640783,-522.38,0.00021917,3]
[348493947,1736580640792,-500.0,0.00021917,3]
[348493948,1736580640801,-500.0,0.00021917,3]
[348493949,1736580640811,-500.0,0.00021917,3]
[348493950,1736580640820,-500.0,0.00021917,3]
[348493951,1736580640829,-500.0,0.00021917,3]
[348493952,1736580640838,-500.0,0.00021917,3]
[348493953,1736580640847,-500.0,0.00021917,3]
[348493954,1736580640856,-276.53509387,0.00021917,3]
[348493955,1736580640865,-455.84747252,0.00021917,3]
[348494025,1736580646382,-44.15252748,0.00021917,3]
[348494026,1736580646392,-500.0,0.00021917,3]
[348494027,1736580646402,-500.0,0.00021917,3]
[348494028,1736580646411,-500.0,0.00021917,3]
[348494029,1736580646421,-500.0,0.00021917,3]
[348494030,1736580646431,-503.42037028,0.00021917,3]
[348494031,1736580646440,-184.06,0.00021917,3]
[348494032,1736580646450,-500.0,0.00021917,3]
[348494033,1736580646459,-500.68227511,0.00021917,3]
[348494034,1736580646468,-501.13408828,0.00021917,3]
[348494035,1736580646478,-500.0,0.00021917,3]
[348494036,1736580646488,-229.11,0.00021917,3]
[348494037,1736580646500,-500.0,0.00021917,3]
[348494038,1736580646510,-313.9862949,0.00021917,3]
[348494039,1736580646519,-668.12,0.00021917,3]
[348494040,1736580646529,-338.15788476,0.00021917,3]
[348494042,1736581667126,204.480264,0.00013973,2]
[348494084,1736581832773,-248.67708571,0.000189,2]
[348494086,1736581832784,-3648.0,0.00019713,2]
[348494088,1736581832793,-300.0,0.00019713,2]
[348494090,1736581832802,-24880.0,0.00019714,2]
[348494092,1736581832812,-4170.25765073,0.00019717,2]
[348494094,1736581832821,-687.9765561,0.00019991,2]
[348494096,1736581832831,-260.2506721,0.0002,2]
[348494098,1736581832840,-500.0,0.00020412,2]
[348494100,1736581832850,-159.871,0.00020862,2]
[348494102,1736581832859,-640.3865475,0.00021049,2]
[348494104,1736581832868,-194.451539,0.00021094,2]
[348494106,1736581832878,-154.0,0.00021111,2]
[348494108,1736581832888,-160.41886993,0.00021124,2]
[348494110,1736581832897,-304.45225005,0.00021124,2]
[348494112,1736581832906,-12486.20595311,0.00021229,2]
[348494114,1736581832915,-393.082,0.0002133,2]
[348494116,1736581832924,-420.0,0.00021471,2]
[348494118,1736581832934,-12486.20595311,0.00021491,2]
[348494120,1736581832943,-152.0,0.0002162,2]
[348494122,1736581832952,-273.01808054,0.00021817,2]
[348494124,1736581832962,-194.451539,0.00021882,2]
[348494127,1736581832971,-273.01808051,0.00021886,2]
[348494129,1736581832980,-365.1161944,0.000219,2]
[348494131,1736581832990,-254.48739482,0.00021904,2]
[348494134,1736581832999,-532.39177209,0.00021916,2]
[348494136,1736581833008,-239.11197129,0.00021916,2]
[348494138,1736581833017,-188.56141785,0.00021916,2]
[348494141,1736581833027,-8763.6636355,0.00021917,5]
[348494143,1736581833037,-531.36850973,0.00021917,5]
[348494147,1736581833048,-500.0,0.00021917,3]
[348494150,1736581833057,-308.14341796,0.00021917,3]
[348494153,1736581833069,-191.85658204,0.00021917,3]
[348494156,1736581833079,-500.0,0.00021917,3]
[348494159,1736581833089,-553.24,0.00021917,3]
[348494162,1736581833098,-500.0,0.00021917,3]
[348494165,1736581833107,-500.0,0.00021917,3]
[348494167,1736581833117,-2732.36,0.00021917,3]
[348494170,1736581833127,-500.0,0.00021917,3]
[348494173,1736581833136,-500.0,0.00021917,3]
[348494175,1736581833145,-241.41238012,0.00021917,3]
[348494179,1736581833155,-500.0,0.00021917,3]
[348494181,1736581833165,-498.94115654,0.00021917,3]
[348494184,1736581833175,-220.47245086,0.00021917,3]
[348494187,1736581833184,-926.2,0.00021917,3]
[348494189,1736581833197,-500.0,0.00021917,3]
[348494191,1736581833207,-500.0,0.00021917,3]
[348494193,1736581833217,-500.0,0.00021917,3]
[348494195,1736581833227,-500.0,0.00021917,3]
[348494197,1736581833238,-1288.34,0.00021917,3]
[348494199,1736581833248,-564.0037121,0.00021917,3]
[348494201,1736581833257,-500.0,0.00021917,3]
[348494203,1736581833267,-500.0,0.00021917,3]
[348494205,1736581833277,-500.0,0.00021917,3]
[348494207,1736581833287,-500.0,0.00021917,3]
[348494209,1736581833297,-500.0,0.00021917,3]
[348494211,1736581833306,-242.28,0.00021917,3]
[348494213,1736581833315,-500.0,0.00021917,3]
[348494215,1736581833326,-468.96099994,0.00021917,3]
[348494493,1736581838605,-31.03900006,0.00021917,3]
[348494495,1736581838614,-500.0,0.00021917,3]
[348494497,1736581838623,-500.0,0.00021917,3]
[348494499,1736581838633,-168.23810751,0.00021917,3]
[348494501,1736581838642,-500.0,0.00021917,3]
[348494503,1736581838651,-500.0,0.00021917,3]
[348494505,1736581838660,-6527.92022764,0.00021917,2]
[348494537,1736581840681,-1043.7,0.00021917,2]
[348494538,1736581840694,-312.2633,0.00021917,2]
[348494539,1736581840706,-36592.48647236,0.00021917,2]
[348494540,1736581840716,-606.37,0.00021917,3]
[348494541,1736581840725,-500.0,0.00021917,3]
[348494542,1736581840734,-637.68914745,0.00021917,3]
[348494543,1736581840744,-1595.63,0.00021917,3]
[348494544,1736581840753,-509.84770316,0.00021917,3]
[348494545,1736581840762,-675.63,0.00021917,3]
[348494546,1736581840771,-619.5,0.00021917,3]
[348494547,1736581840780,-237.616408,0.00021917,3]
[348494548,1736581840790,-500.0,0.00021917,2]
[348494549,1736581840801,-500.74549236,0.00021917,3]
[348494550,1736581840810,-3206.06,0.00021917,3]
[348494551,1736581840819,-502.90752119,0.00021917,3]
[348494552,1736581840828,-500.0,0.00021917,3]
[348494553,1736581840837,-544.50734633,0.00021917,3]
[348494554,1736581840846,-534.13,0.00021917,3]
[348494555,1736581840855,-260.8,0.00021917,3]
[348494556,1736581840864,-500.0,0.00021917,3]
[348494557,1736581840873,-501.87225878,0.00021917,3]
[348494558,1736581840882,-500.0,0.00021917,3]
[348494559,1736581840891,-500.0,0.00021917,3]
[348494560,1736581840900,-502.01154278,0.00021917,3]
[348494561,1736581840910,-967.92,0.00021917,3]
[348494562,1736581840919,-500.0,0.00021917,3]
[348494563,1736581840928,-500.0,0.00021917,3]
[348494564,1736581840938,-500.0,0.00021917,3]
[348494565,1736581840947,-733.31,0.00021917,3]
[348494566,1736581840957,-649.96,0.00021917,3]
[348494567,1736581840966,-500.0,0.00021917,3]
[348494568,1736581840975,-500.0,0.00021917,3]
[348494569,1736581840984,-500.0,0.00021917,3]
[348494570,1736581840994,-581.67,0.00021917,3]
[348494571,1736581841003,-500.0,0.00021917,3]
[348494572,1736581841012,-635.0679477,0.00021917,3]
[348494573,1736581841021,-525.95,0.00021917,3]
[348494574,1736581841030,-500.0,0.00021917,3]
[348494575,1736581841039,-1168.42,0.00021917,3]
[348494576,1736581841052,-500.0,0.00021917,3]
[348494577,1736581841062,-500.0,0.00021917,3]
[348494578,1736581841071,-1193.18,0.00021917,3]
[348494579,1736581841080,-500.0,0.00021917,3]
[348494580,1736581841089,-500.0,0.00021917,3]
[348494581,1736581841098,-757.17,0.00021917,3]
[348494582,1736581841107,-638.85,0.00021917,3]
[348494583,1736581841119,-500.0,0.00021917,3]
[348494584,1736581841128,-500.0,0.00021917,3]
[348494585,1736581841137,-500.0,0.00021917,3]
[348494586,1736581841146,-500.0,0.00021917,3]
[348494587,1736581841155,-500.0,0.00021917,3]
[348494588,1736581841166,-500.0,0.00021917,3]
[348494589,1736581841175,-500.0,0.00021917,3]
[348494590,1736581841184,-500.0,0.00021917,3]
[348494591,1736581841197,-13758.36,0.00021917,3]
[348494592,1736581841207,-506.65436388,0.00021917,3]
[348494593,1736581841216,-542.16,0.00021917,3]
[348494594,1736581841225,-738.14,0.00021917,3]
[348494595,1736581841235,-599.28,0.00021917,3]
[348494596,1736581841245,-616.19,0.00021917,3]
[348494597,1736581841254,-500.0,0.00021917,3]
[348494598,1736581841263,-500.0,0.00021917,3]
[348494599,1736581841274,-500.0,0.00021917,3]
[348494600,1736581841283,-500.0,0.00021917,3]
[348494601,1736581841292,-500.0,0.00021917,3]
[348494602,1736581841303,-500.0,0.00021917,3]
[348494603,1736581841312,-640.28,0.00021917,3]
[348494604,1736581841322,-273.01808051,0.00021954,2]
[348494605,1736581841332,-365.11619437,0.00021969,2]
[348494606,1736581841341,-558.68,0.00021999,3]
[348494607,1736581841350,-5709.04901345,0.00022,2]
[348494608,1736581841359,-273.01808051,0.00022023,2]
[348494609,1736581841368,-365.11619437,0.00022038,2]
[348494610,1736581841378,-510.79103443,0.00022082,2]
[348494611,1736581841387,-417.14897287,0.00022091,3]
[348494612,1736581841397,-273.01808051,0.00022091,2]
[348494613,1736581841406,-365.11619437,0.00022107,2]
[348494614,1736581841415,-396.709,0.00022115,2]
[348494615,1736581841424,-271.21388879,0.00022173,2]
[348494616,1736581841433,-500.0,0.00022173,2]
[348494617,1736581841442,-476.64897481,0.00022173,2]
[348494618,1736581841535,-365.11619437,0.00022176,2]
[348494619,1736581841572,-55641.32144038,0.00022191,2]
[348494663,1736581843487,-3776.27,0.00021917,3]
[348494665,1736581843498,-2420.64888504,0.00022191,2]
[348494667,1736581843510,-13916.32029875,0.00022191,2]
[348494670,1736581843529,-6572.54999999,0.00022191,2]
[348494680,1736581843681,-25125.76183608,0.00022191,2]
[348494686,1736581846485,-20657.36944651,0.00022191,2]
[348494687,1736581846526,-977.51098901,0.00022191,2]
[348494688,1736581846538,-6931.01990944,0.00022191,2]
[348494694,1736582685530,213.830626,0.00013973,2]
[348495130,1736583036479,-165.78472381,0.000189,2]
[348495132,1736583036489,-164.084626,0.00019985,2]
[348495134,1736583036499,-245.23215177,0.00020091,2]
[348495136,1736583036508,-170.05380415,0.00020795,2]
[348495138,1736583036517,-1062.0,0.00020895,2]
[348495140,1736583036527,-170.05380414,0.0002123,2]
[348495142,1736583036536,-87.29648373,0.0002125,2]
[348495144,1736583036548,-7089.70351627,0.0002125,2]
[348495146,1736583036558,-300.0,0.0002125,2]
[348495148,1736583036567,-1816.50464873,0.00021251,2]
[348495150,1736583036579,-9050.39121596,0.00021251,2]
[348495152,1736583036588,-394.0,0.00021293,2]
[348495154,1736583036597,-400.283,0.0002133,2]
[348495156,1736583036607,-10866.89586469,0.00021562,2]
[348495158,1736583036617,-166.42260183,0.00021599,2]
[348495160,1736583036627,-352.9591083,0.00021699,2]
[348495163,1736583036638,-194.451539,0.00021806,2]
[348495165,1736583036659,-174.16981734,0.00021817,2]
[348495166,1736583036677,-6583.58162556,0.00021841,2]
[348495169,1736583036692,-553.83063043,0.00021841,2]
[348495172,1736583036709,-633.90707799,0.00021841,2]
[348495347,1736583038564,-3095.57653071,0.00021841,2]
[348495349,1736583038574,-182.498,0.00021892,2]
[348495351,1736583038583,-304.26349555,0.000219,2]
[348495353,1736583038593,-500.0,0.0002191,2]
[348495355,1736583038602,-500.0,0.0002191,2]
[348495357,1736583038611,-602.33546094,0.0002191,2]
[348495359,1736583038621,-500.0,0.0002191,2]
[348495361,1736583038630,-500.0,0.0002191,2]
[348495363,1736583038639,-500.0,0.0002191,2]
[348495365,1736583038649,-500.0,0.0002191,2]
[348495367,1736583038658,-500.0,0.0002191,2]
[348495369,1736583038667,-550.0,0.0002191,2]
[348495371,1736583038677,-500.0,0.0002191,2]
[348495373,1736583038686,-500.0,0.0002191,2]